[Event "Late-Titled-Tuesday-Blitz-January-30-2024"]
[Site "Chess.com"]
[Date "2024.01.30"]
[Round "8"]
[White "ccccvhhhj"]
[Black "malakismayil"]
[Result "1-0"]
[WhiteElo "2430"]
[BlackElo "2527"]
[TimeControl "180+1"]
[EndTime "15:28:45 PST"]
[Termination "ccccvhhhj won on time"]

1. e4 {[%clk 0:03:00]} 1... e5 {[%clk 0:02:55.7]} 2. Nf3 {[%clk 0:03:00.5]} 2...
Nc6 {[%clk 0:02:52.8]} 3. d4 {[%clk 0:03:00.9]} 3... exd4 {[%clk 0:02:51.8]} 4.
Nxd4 {[%clk 0:03:01.8]} 4... Bc5 {[%clk 0:02:51.5]} 5. Nb3 {[%clk 0:03:01.6]}
5... Bb6 {[%clk 0:02:51.6]} 6. Nc3 {[%clk 0:03:02.4]} 6... d6 {[%clk 0:02:51.4]}
7. Qe2 {[%clk 0:03:03]} 7... Nf6 {[%clk 0:02:51.5]} 8. Be3 {[%clk 0:03:03.6]}
8... O-O {[%clk 0:02:52.1]} 9. O-O-O {[%clk 0:03:03.6]} 9... h6 {[%clk
0:02:51.6]} 10. f3 {[%clk 0:03:03.3]} 10... Qe7 {[%clk 0:02:51.3]} 11. g4 {[%clk
0:03:01.7]} 11... Be6 {[%clk 0:02:42]} 12. h4 {[%clk 0:03:00.4]} 12... Nd7
{[%clk 0:02:36]} 13. Kb1 {[%clk 0:02:50.3]} 13... Nce5 {[%clk 0:02:27.1]} 14.
Nd5 {[%clk 0:02:35]} 14... Bxd5 {[%clk 0:02:23.9]} 15. exd5 {[%clk 0:02:35.9]}
15... Bxe3 {[%clk 0:02:17.6]} 16. Qxe3 {[%clk 0:02:35.8]} 16... Ng6 {[%clk
0:02:18.4]} 17. Qf2 {[%clk 0:02:34.6]} 17... a5 {[%clk 0:02:05.3]} 18. a4 {[%clk
0:02:24.6]} 18... Nc5 {[%clk 0:01:53.9]} 19. Nxc5 {[%clk 0:02:07.8]} 19... dxc5
{[%clk 0:01:54.8]} 20. Bd3 {[%clk 0:02:07]} 20... Nf4 {[%clk 0:01:47.4]} 21. Qg3
{[%clk 0:01:46.3]} 21... Qd6 {[%clk 0:01:42.7]} 22. Be4 {[%clk 0:01:40.9]} 22...
Rfe8 {[%clk 0:01:32]} 23. h5 {[%clk 0:01:37.9]} 23... Rab8 {[%clk 0:01:22.6]}
24. g5 {[%clk 0:01:37.2]} 24... Ne2 {[%clk 0:00:56.9]} 25. Qg2 {[%clk 0:01:27]}
25... Ng3 {[%clk 0:00:48.3]} 26. gxh6 {[%clk 0:01:22.1]} 26... f5 {[%clk
0:00:36.8]} 27. Bd3 {[%clk 0:01:12]} 27... f4 {[%clk 0:00:28.9]} 28. hxg7 {[%clk
0:01:09.1]} 28... Kxg7 {[%clk 0:00:29.6]} 29. h6+ {[%clk 0:01:08.8]} 29... Kh8
{[%clk 0:00:29.8]} 30. Rhe1 {[%clk 0:01:05.8]} 30... Qxd5 {[%clk 0:00:25.2]} 31.
Qd2 {[%clk 0:00:59.9]} 31... Qg5 {[%clk 0:00:23.4]} 32. Qc3+ {[%clk 0:00:58.7]}
32... Kg8 {[%clk 0:00:19.7]} 33. Bc4+ {[%clk 0:00:57.7]} 33... Kh7 {[%clk
0:00:18.6]} 34. Bd3+ {[%clk 0:00:52.2]} 34... Kxh6 {[%clk 0:00:17.2]} 35. Rh1+
{[%clk 0:00:49.5]} 35... Nh5 {[%clk 0:00:08]} 36. Rdg1 {[%clk 0:00:40.1]} 36...
Qe5 {[%clk 0:00:05.7]} 37. Qc4 {[%clk 0:00:31.3]} 37... Re6 {[%clk 0:00:03.4]}
38. Rg4 {[%clk 0:00:24.7]} 38... Rbe8 {[%clk 0:00:02.2]} 39. Rgh4 {[%clk
0:00:24.4]} 39... Qg5 {[%clk 0:00:01.6]} 40. Rxh5+ {[%clk 0:00:24.1]} 40... Qxh5
{[%clk 0:00:02.5]} 41. Rxh5+ {[%clk 0:00:24.6]} 41... Kxh5 {[%clk 0:00:03.4]}
42. Qxf4 {[%clk 0:00:23.8]} 42... Re1+ {[%clk 0:00:02.9]} 43. Ka2 {[%clk
0:00:23.8]} 43... R1e5 {[%clk 0:00:03.8]} 44. Qg4+ {[%clk 0:00:23.8]} 44... Kh6
{[%clk 0:00:03.5]} 45. f4 {[%clk 0:00:24.4]} 45... R5e6 {[%clk 0:00:03.2]} 46.
f5 {[%clk 0:00:24.2]} 46... Rd6 {[%clk 0:00:02.9]} 47. Qh4+ {[%clk 0:00:21.5]}
47... Kg7 {[%clk 0:00:03.3]} 48. Qg5+ {[%clk 0:00:22.1]} 48... Kf7 {[%clk
0:00:03.7]} 49. Bc4+ {[%clk 0:00:19.8]} 49... Kf8 {[%clk 0:00:04]} 50. Qg8+
{[%clk 0:00:19.1]} 50... Ke7 {[%clk 0:00:04.2]} 51. Qf7+ {[%clk 0:00:19.3]}
51... Kd8 {[%clk 0:00:04.3]} 52. f6 {[%clk 0:00:18.8]} 52... Rd7 {[%clk
0:00:03]} 53. Qg6 {[%clk 0:00:18.1]} 53... Rf8 {[%clk 0:00:03.3]} 54. f7 {[%clk
0:00:17.3]} 54... c6 {[%clk 0:00:03.9]} 55. Qg7 {[%clk 0:00:15.5]} 55... Ke7
{[%clk 0:00:04.1]} 56. Qe5+ {[%clk 0:00:14.3]} 56... Kd8 {[%clk 0:00:04.5]} 57.
Qxc5 {[%clk 0:00:12.4]} 57... Re7 {[%clk 0:00:04.2]} 58. Qxa5+ {[%clk
0:00:11.4]} 58... Kd7 {[%clk 0:00:04.7]} 59. Qb6 {[%clk 0:00:10]} 59... Kd6
{[%clk 0:00:03]} 60. a5 {[%clk 0:00:09.2]} 60... Ra8 {[%clk 0:00:01.5]} 61. b4
{[%clk 0:00:09]} 61... Rf8 {[%clk 0:00:01.2]} 62. Qc5+ {[%clk 0:00:09.2]} 62...
Kd7 {[%clk 0:00:01.3]} 63. Kb3 {[%clk 0:00:07.9]} 1-0

[Event "Late-Titled-Tuesday-Blitz-January-30-2024"]
[Site "Chess.com"]
[Date "2024.01.30"]
[Round "8"]
[White "RianKapriaga"]
[Black "ninguno46"]
[Result "0-1"]
[WhiteElo "2358"]
[BlackElo "2514"]
[TimeControl "180+1"]
[EndTime "15:28:46 PST"]
[Termination "ninguno46 won on time"]

1. d4 {[%clk 0:03:00.9]} 1... Nf6 {[%clk 0:02:59.1]} 2. Nf3 {[%clk 0:03:00.6]}
2... e6 {[%clk 0:02:57.2]} 3. Bf4 {[%clk 0:03:00]} 3... b6 {[%clk 0:02:56.3]} 4.
e3 {[%clk 0:02:59.6]} 4... Bb7 {[%clk 0:02:55.9]} 5. Nbd2 {[%clk 0:02:58.5]}
5... Be7 {[%clk 0:02:56.1]} 6. h3 {[%clk 0:02:58.3]} 6... c5 {[%clk 0:02:55.8]}
7. c3 {[%clk 0:02:56.6]} 7... O-O {[%clk 0:02:54.9]} 8. Bd3 {[%clk 0:02:55.7]}
8... cxd4 {[%clk 0:02:54.4]} 9. exd4 {[%clk 0:02:54.6]} 9... d6 {[%clk
0:02:54.1]} 10. O-O {[%clk 0:02:53.9]} 10... Nbd7 {[%clk 0:02:53.5]} 11. a4
{[%clk 0:02:52.8]} 11... a6 {[%clk 0:02:52.4]} 12. Qe2 {[%clk 0:02:52.1]} 12...
Re8 {[%clk 0:02:51.5]} 13. Rfd1 {[%clk 0:02:50.7]} 13... Bf8 {[%clk 0:02:50.7]}
14. Nc4 {[%clk 0:02:47.4]} 14... Qc7 {[%clk 0:02:49.5]} 15. Bh2 {[%clk
0:02:31.7]} 15... Bc6 {[%clk 0:02:11.4]} 16. Nfd2 {[%clk 0:02:23.9]} 16... b5
{[%clk 0:02:09.7]} 17. axb5 {[%clk 0:02:23]} 17... axb5 {[%clk 0:02:09.6]} 18.
Ne3 {[%clk 0:02:22.2]} 18... Qb7 {[%clk 0:02:07.1]} 19. Nb3 {[%clk 0:02:12.6]}
19... Qb6 {[%clk 0:02:03.1]} 20. Bg3 {[%clk 0:01:51.9]} 20... Nd5 {[%clk
0:01:41.7]} 21. Qc2 {[%clk 0:01:35.9]} 21... N7f6 {[%clk 0:01:37.1]} 22. Bh4
{[%clk 0:01:31.3]} 22... g6 {[%clk 0:01:30.4]} 23. Nxd5 {[%clk 0:01:17.1]} 23...
Nxd5 {[%clk 0:01:29.4]} 24. Bg5 {[%clk 0:01:11.8]} 24... Bg7 {[%clk 0:01:24.2]}
25. Nd2 {[%clk 0:01:09.7]} 25... h6 {[%clk 0:01:18.2]} 26. Bh4 {[%clk 0:01:08]}
26... Nf4 {[%clk 0:01:15.1]} 27. Be4 {[%clk 0:01:07.1]} 27... b4 {[%clk
0:01:05.3]} 28. Nc4 {[%clk 0:00:56.3]} 28... Qc7 {[%clk 0:01:01.7]} 29. Bg3
{[%clk 0:00:38.3]} 29... Rxa1 {[%clk 0:00:58.5]} 30. Rxa1 {[%clk 0:00:36.9]}
30... Bxe4 {[%clk 0:00:55.9]} 31. Qxe4 {[%clk 0:00:36.3]} 31... Qxc4 {[%clk
0:00:53.6]} 32. Bxf4 {[%clk 0:00:25.3]} 32... bxc3 {[%clk 0:00:53.2]} 33. bxc3
{[%clk 0:00:23.5]} 33... Qxc3 {[%clk 0:00:52.8]} 34. Ra8 {[%clk 0:00:16.7]}
34... Rxa8 {[%clk 0:00:41.4]} 35. Qxa8+ {[%clk 0:00:15.4]} 35... Kh7 {[%clk
0:00:42]} 36. Qe8 {[%clk 0:00:14.5]} 36... e5 {[%clk 0:00:33.8]} 37. dxe5 {[%clk
0:00:12.4]} 37... dxe5 {[%clk 0:00:34.3]} 38. Be3 {[%clk 0:00:11.6]} 38... Qc4
{[%clk 0:00:32.2]} 39. g3 {[%clk 0:00:10.3]} 39... h5 {[%clk 0:00:29.1]} 40. h4
{[%clk 0:00:10]} 40... Qd5 {[%clk 0:00:27.1]} 41. Kh2 {[%clk 0:00:09.7]} 41...
Qf3 {[%clk 0:00:25.4]} 42. Kg1 {[%clk 0:00:09.7]} 42... Qf5 {[%clk 0:00:23.7]}
43. Kg2 {[%clk 0:00:09.2]} 43... Qe4+ {[%clk 0:00:22.7]} 44. Kg1 {[%clk
0:00:09.4]} 44... Qb1+ {[%clk 0:00:22.3]} 45. Kg2 {[%clk 0:00:09.6]} 45... Qf5
{[%clk 0:00:23.2]} 46. Kg1 {[%clk 0:00:10]} 46... Bh6 {[%clk 0:00:21.9]} 47.
Bxh6 {[%clk 0:00:08.4]} 47... Qb1+ {[%clk 0:00:19.5]} 48. Kh2 {[%clk 0:00:07.2]}
48... Qf5 {[%clk 0:00:17.8]} 49. Be3 {[%clk 0:00:06.8]} 49... f6 {[%clk
0:00:17.6]} 50. Qf7+ {[%clk 0:00:06.2]} 50... Kh8 {[%clk 0:00:17.7]} 51. Qf8+
{[%clk 0:00:05.7]} 51... Kh7 {[%clk 0:00:17.4]} 52. Qc5 {[%clk 0:00:05.5]} 52...
Qe6 {[%clk 0:00:16.5]} 53. Qc7+ {[%clk 0:00:04.6]} 53... Kh8 {[%clk 0:00:15.8]}
54. Qb7 {[%clk 0:00:04.7]} 54... Kg8 {[%clk 0:00:14.2]} 55. Bh6 {[%clk
0:00:04.3]} 55... Qf7 {[%clk 0:00:14]} 56. Qxf7+ {[%clk 0:00:03]} 56... Kxf7
{[%clk 0:00:14.9]} 57. Kg2 {[%clk 0:00:03.3]} 57... Ke6 {[%clk 0:00:15.2]} 58.
Be3 {[%clk 0:00:03.1]} 58... Kf5 {[%clk 0:00:16.1]} 59. Kf3 {[%clk 0:00:03.4]}
59... g5 {[%clk 0:00:16]} 0-1

[Event "Late-Titled-Tuesday-Blitz-January-30-2024"]
[Site "Chess.com"]
[Date "2024.01.30"]
[Round "8"]
[White "Kostukov_Alex"]
[Black "Nouali_Mohamed"]
[Result "1-0"]
[WhiteElo "2305"]
[BlackElo "2459"]
[TimeControl "180+1"]
[EndTime "15:28:54 PST"]
[Termination "Kostukov_Alex won by resignation"]

1. g3 {[%clk 0:03:00.9]} 1... h5 {[%clk 0:02:59.9]} 2. Nf3 {[%clk 0:02:59]} 2...
d5 {[%clk 0:02:58.6]} 3. Bg2 {[%clk 0:02:55.1]} 3... Nc6 {[%clk 0:02:58.8]} 4.
d4 {[%clk 0:02:50.3]} 4... Bf5 {[%clk 0:02:55.3]} 5. O-O {[%clk 0:02:45.7]} 5...
Qd7 {[%clk 0:02:52]} 6. c4 {[%clk 0:02:37.9]} 6... e6 {[%clk 0:02:39.8]} 7. Nc3
{[%clk 0:02:32.4]} 7... Bb4 {[%clk 0:02:24.6]} 8. Bf4 {[%clk 0:02:23.1]} 8... a6
{[%clk 0:01:57.8]} 9. cxd5 {[%clk 0:02:12.3]} 9... exd5 {[%clk 0:01:56.9]} 10.
Ne5 {[%clk 0:02:12.3]} 10... Nxe5 {[%clk 0:01:54.6]} 11. dxe5 {[%clk 0:02:10]}
11... Bxc3 {[%clk 0:01:47.7]} 12. bxc3 {[%clk 0:02:09.2]} 12... Ne7 {[%clk
0:01:48.3]} 13. Qd4 {[%clk 0:01:59.4]} 13... c6 {[%clk 0:01:39.4]} 14. Rad1
{[%clk 0:01:52.8]} 14... Qe6 {[%clk 0:01:15.9]} 15. Qb6 {[%clk 0:01:38.6]} 15...
O-O {[%clk 0:00:43.5]} 16. Qxb7 {[%clk 0:01:33.5]} 16... Ng6 {[%clk 0:00:43.2]}
17. Qb4 {[%clk 0:01:25.5]} 17... Nxe5 {[%clk 0:00:37.5]} 18. Rfe1 {[%clk
0:01:12.6]} 18... Rfb8 {[%clk 0:00:16.6]} 19. Qd4 {[%clk 0:01:10.2]} 19... f6
{[%clk 0:00:15.3]} 20. e4 {[%clk 0:01:10]} 20... dxe4 {[%clk 0:00:14.8]} 21.
Bxe4 {[%clk 0:01:08.4]} 21... Bg4 {[%clk 0:00:09]} 22. Rc1 {[%clk 0:00:39.5]}
22... Rd8 {[%clk 0:00:08]} 23. Qe3 {[%clk 0:00:36.4]} 23... Nc4 {[%clk
0:00:07.8]} 24. Qc5 {[%clk 0:00:35.1]} 24... Qf7 {[%clk 0:00:05.5]} 25. Qxc6
{[%clk 0:00:20.8]} 25... Rac8 {[%clk 0:00:04.3]} 26. Qxa6 {[%clk 0:00:19.3]}
26... Nd2 {[%clk 0:00:04.7]} 27. Bg2 {[%clk 0:00:10.2]} 27... Nf3+ {[%clk
0:00:04.6]} 28. Bxf3 {[%clk 0:00:09.4]} 28... Bxf3 {[%clk 0:00:05.5]} 29. Qe6
{[%clk 0:00:07.9]} 29... Qxe6 {[%clk 0:00:04.8]} 30. Rxe6 {[%clk 0:00:08.8]}
30... Kf7 {[%clk 0:00:05.7]} 31. Re3 {[%clk 0:00:08.2]} 31... Bg4 {[%clk
0:00:05.5]} 32. h4 {[%clk 0:00:07.5]} 32... Rd2 {[%clk 0:00:04.2]} 33. Re7+
{[%clk 0:00:05.9]} 33... Kxe7 {[%clk 0:00:04.5]} 34. Bxd2 {[%clk 0:00:06.8]}
34... Ra8 {[%clk 0:00:05.2]} 35. Rc2 {[%clk 0:00:06.4]} 35... Ra4 {[%clk
0:00:05.5]} 36. Rb2 {[%clk 0:00:06.2]} 36... Bf3 {[%clk 0:00:05.4]} 37. Be3
{[%clk 0:00:06.3]} 37... Ra6 {[%clk 0:00:04.9]} 38. Bd4 {[%clk 0:00:06.8]} 38...
Re6 {[%clk 0:00:03.6]} 39. Kf1 {[%clk 0:00:07]} 39... Bg4 {[%clk 0:00:03.3]} 40.
f4 {[%clk 0:00:06.2]} 40... Re4 {[%clk 0:00:02.5]} 41. Kf2 {[%clk 0:00:05.3]}
41... Kf7 {[%clk 0:00:03]} 42. Rb7+ {[%clk 0:00:04.9]} 42... Kg6 {[%clk
0:00:03.4]} 43. Rb2 {[%clk 0:00:05.8]} 43... Re8 {[%clk 0:00:03.5]} 44. a4
{[%clk 0:00:06]} 44... Rc8 {[%clk 0:00:04]} 45. Ra2 {[%clk 0:00:05.9]} 45... Ra8
{[%clk 0:00:04.4]} 46. a5 {[%clk 0:00:06.2]} 46... Be6 {[%clk 0:00:05.3]} 47.
Ra4 {[%clk 0:00:06]} 47... Kf5 {[%clk 0:00:05.8]} 48. a6 {[%clk 0:00:06]} 48...
Kg4 {[%clk 0:00:04.6]} 49. a7 {[%clk 0:00:06]} 49... Bd5 {[%clk 0:00:04.5]} 50.
Rb4 {[%clk 0:00:06.1]} 50... Be4 {[%clk 0:00:03.7]} 51. Rb8 {[%clk 0:00:05.8]}
51... f5 {[%clk 0:00:02.5]} 52. Rxa8 {[%clk 0:00:03.8]} 52... Bxa8 {[%clk
0:00:03.4]} 53. Bxg7 {[%clk 0:00:03.8]} 53... Bb7 {[%clk 0:00:03.4]} 54. Bf6
{[%clk 0:00:03.4]} 54... Ba8 {[%clk 0:00:03.8]} 55. Bg5 {[%clk 0:00:03.9]} 55...
Bb7 {[%clk 0:00:04.2]} 56. c4 {[%clk 0:00:03.7]} 56... Ba8 {[%clk 0:00:05.1]}
57. Ke3 {[%clk 0:00:04.1]} 57... Kxg3 {[%clk 0:00:04.9]} 58. Kd4 {[%clk
0:00:04.7]} 58... Kf3 {[%clk 0:00:05.5]} 59. Kc5 {[%clk 0:00:05.1]} 59... Ke4
{[%clk 0:00:06.4]} 60. Kd6 {[%clk 0:00:03]} 60... Kd4 {[%clk 0:00:07.3]} 61. c5
{[%clk 0:00:03.3]} 61... Kc4 {[%clk 0:00:05.3]} 62. c6 {[%clk 0:00:03.6]} 62...
Kb5 {[%clk 0:00:05.3]} 63. c7 {[%clk 0:00:03.6]} 63... Bb7 {[%clk 0:00:04.8]}
64. a8=Q {[%clk 0:00:04]} 1-0

[Event "Late-Titled-Tuesday-Blitz-January-30-2024"]
[Site "Chess.com"]
[Date "2024.01.30"]
[Round "8"]
[White "ChristopherYoo"]
[Black "GMAkobianSTL"]
[Result "1-0"]
[WhiteElo "2935"]
[BlackElo "2725"]
[TimeControl "180+1"]
[EndTime "15:28:56 PST"]
[Termination "ChristopherYoo won on time"]

1. Nf3 {[%clk 0:03:00.9]} 1... d5 {[%clk 0:02:59.7]} 2. g3 {[%clk 0:03:01]} 2...
c5 {[%clk 0:02:59.8]} 3. Bg2 {[%clk 0:03:01.2]} 3... Nc6 {[%clk 0:02:59.9]} 4.
O-O {[%clk 0:03:01.6]} 4... e5 {[%clk 0:03:00]} 5. d3 {[%clk 0:03:02]} 5... h6
{[%clk 0:02:59.9]} 6. Nbd2 {[%clk 0:02:57.3]} 6... Nf6 {[%clk 0:02:59.2]} 7. e4
{[%clk 0:02:57.4]} 7... d4 {[%clk 0:02:59.3]} 8. Nc4 {[%clk 0:02:57.5]} 8... Qc7
{[%clk 0:02:58.4]} 9. a4 {[%clk 0:02:56.8]} 9... Bg4 {[%clk 0:02:58]} 10. c3
{[%clk 0:02:57.6]} 10... O-O-O {[%clk 0:02:56.5]} 11. h3 {[%clk 0:02:50.7]}
11... Be6 {[%clk 0:02:55.2]} 12. Qe2 {[%clk 0:02:36.7]} 12... g5 {[%clk
0:02:54.1]} 13. Bd2 {[%clk 0:02:27.4]} 13... Kb8 {[%clk 0:02:50.6]} 14. Rfc1
{[%clk 0:02:23.7]} 14... Bxc4 {[%clk 0:02:45.9]} 15. dxc4 {[%clk 0:02:24.6]}
15... Bd6 {[%clk 0:02:30.8]} 16. cxd4 {[%clk 0:02:25.5]} 16... exd4 {[%clk
0:02:30.6]} 17. e5 {[%clk 0:02:12.7]} 17... Nxe5 {[%clk 0:02:27.2]} 18. Nxe5
{[%clk 0:02:11]} 18... Bxe5 {[%clk 0:02:27.5]} 19. Qd3 {[%clk 0:02:11.7]} 19...
Nd7 {[%clk 0:02:04.2]} 20. b4 {[%clk 0:02:04.9]} 20... Bd6 {[%clk 0:01:59.5]}
21. b5 {[%clk 0:01:42.5]} 21... Ne5 {[%clk 0:01:56.6]} 22. Qe4 {[%clk
0:01:35.8]} 22... f5 {[%clk 0:01:28.3]} 23. Qxf5 {[%clk 0:01:30.3]} 23... Rde8
{[%clk 0:01:28.1]} 24. a5 {[%clk 0:00:39.6]} 24... Rhf8 {[%clk 0:01:26.7]} 25.
b6 {[%clk 0:00:38.4]} 25... Rxf5 {[%clk 0:01:23.7]} 26. bxc7+ {[%clk 0:00:38.2]}
26... Kxc7 {[%clk 0:01:23.4]} 27. f4 {[%clk 0:00:38.1]} 27... gxf4 {[%clk
0:01:17.1]} 28. Bxf4 {[%clk 0:00:36]} 28... Nd3 {[%clk 0:01:04.2]} 29. Rcb1
{[%clk 0:00:35.7]} 29... Nb4 {[%clk 0:01:02]} 30. Bxh6 {[%clk 0:00:27.1]} 30...
Bxg3 {[%clk 0:00:57.9]} 31. Rf1 {[%clk 0:00:27.5]} 31... Rxf1+ {[%clk
0:00:51.8]} 32. Rxf1 {[%clk 0:00:28.4]} 32... Re1 {[%clk 0:00:48.9]} 33. Bf4+
{[%clk 0:00:24.5]} 33... Bxf4 {[%clk 0:00:42.3]} 34. Rxe1 {[%clk 0:00:24.6]}
34... d3 {[%clk 0:00:42.4]} 35. Rd1 {[%clk 0:00:23.2]} 35... d2 {[%clk
0:00:40.4]} 36. Be4 {[%clk 0:00:17.7]} 36... Na2 {[%clk 0:00:36.2]} 37. Bc2
{[%clk 0:00:17.4]} 37... Nc3 {[%clk 0:00:33.8]} 38. Rf1 {[%clk 0:00:17.4]} 38...
Be3+ {[%clk 0:00:30.9]} 39. Kg2 {[%clk 0:00:17.4]} 39... b6 {[%clk 0:00:26.9]}
40. a6 {[%clk 0:00:16.8]} 40... b5 {[%clk 0:00:26.2]} 41. cxb5 {[%clk
0:00:15.9]} 41... Kb6 {[%clk 0:00:25.5]} 42. Rf7 {[%clk 0:00:11.9]} 42... Kxb5
{[%clk 0:00:22]} 43. Rxa7 {[%clk 0:00:11.7]} 43... Bd4 {[%clk 0:00:15.6]} 44. h4
{[%clk 0:00:08.1]} 44... d1=Q {[%clk 0:00:15]} 45. Bxd1 {[%clk 0:00:07.9]} 45...
Nxd1 {[%clk 0:00:15.2]} 46. Kf3 {[%clk 0:00:07.5]} 46... Kb6 {[%clk 0:00:15.1]}
47. Ra8 {[%clk 0:00:05]} 47... Ne3 {[%clk 0:00:14.7]} 48. a7 {[%clk 0:00:03.6]}
48... Nc4 {[%clk 0:00:11.1]} 49. Ke4 {[%clk 0:00:02.1]} 49... Kb7 {[%clk
0:00:11]} 50. Rd8 {[%clk 0:00:01.9]} 50... Kxa7 {[%clk 0:00:11.3]} 51. h5 {[%clk
0:00:02.5]} 51... Bb2 {[%clk 0:00:08.8]} 52. h6 {[%clk 0:00:02.1]} 52... Kb7
{[%clk 0:00:08.3]} 53. Kf5 {[%clk 0:00:01.8]} 53... Kc6 {[%clk 0:00:08.2]} 54.
Ke6 {[%clk 0:00:01.9]} 54... Nb6 {[%clk 0:00:08]} 55. Rd6+ {[%clk 0:00:02]}
55... Kb5 {[%clk 0:00:07.9]} 56. Rd2 {[%clk 0:00:02.4]} 56... Ba1 {[%clk
0:00:07.6]} 57. Rd1 {[%clk 0:00:02.4]} 57... Bc3 {[%clk 0:00:07.5]} 58. Rc1
{[%clk 0:00:02.2]} 58... Bd4 {[%clk 0:00:07.4]} 59. Kf5 {[%clk 0:00:02]} 59...
c4 {[%clk 0:00:07.1]} 60. Ke4 {[%clk 0:00:01.9]} 60... Bf6 {[%clk 0:00:05.8]}
61. Rf1 {[%clk 0:00:02.5]} 61... Bc3 {[%clk 0:00:05.7]} 62. Rf7 {[%clk
0:00:01.4]} 62... Na4 {[%clk 0:00:04]} 63. Rb7+ {[%clk 0:00:01.7]} 63... Kc5
{[%clk 0:00:03.6]} 64. Rg7 {[%clk 0:00:02]} 64... Nb2 {[%clk 0:00:02.5]} 65.
Rg5+ {[%clk 0:00:02.2]} 65... Kb4 {[%clk 0:00:02.2]} 66. Rg8 {[%clk 0:00:02.5]}
66... Nd3 {[%clk 0:00:01.6]} 67. Rb8+ {[%clk 0:00:02.5]} 67... Kc5 {[%clk
0:00:01.6]} 68. Rc8+ {[%clk 0:00:03.1]} 68... Kb5 {[%clk 0:00:02]} 69. Kd5
{[%clk 0:00:02.4]} 69... Nb4+ {[%clk 0:00:01.9]} 70. Kd6 {[%clk 0:00:02.4]}
70... Bd4 {[%clk 0:00:01.3]} 71. h7 {[%clk 0:00:02.6]} 71... c3 {[%clk
0:00:01.1]} 72. Rb8+ {[%clk 0:00:03]} 1-0